[Event "Early-Titled-Tuesday-Blitz-March-26-2024"]
[Site "Chess.com"]
[Date "2024.03.26"]
[Round "4"]
[White "Rashad_Zeynalli"]
[Black "KorolDimitriy75"]
[Result "1-0"]
[WhiteElo "2685"]
[BlackElo "2382"]
[TimeControl "180+1"]
[EndTime "8:38:22 PDT"]
[Termination "Rashad_Zeynalli won on time"]

1. d4 {[%clk 0:02:57.2]} 1... Nf6 {[%clk 0:02:59.8]} 2. Bf4 {[%clk 0:02:55.6]}
2... c5 {[%clk 0:02:59.7]} 3. d5 {[%clk 0:02:54.7]} 3... Qb6 {[%clk 0:02:54.7]}
4. Nc3 {[%clk 0:02:54.3]} 4... Qxb2 {[%clk 0:02:49.2]} 5. Bd2 {[%clk 0:02:54.4]}
5... Qb6 {[%clk 0:02:43.7]} 6. Rb1 {[%clk 0:02:54]} 6... Qd8 {[%clk 0:02:40.5]}
7. e4 {[%clk 0:02:54.3]} 7... d6 {[%clk 0:02:40.8]} 8. a4 {[%clk 0:02:53.7]}
8... a6 {[%clk 0:02:27]} 9. Nf3 {[%clk 0:02:51.3]} 9... g6 {[%clk 0:02:21.2]}
10. Bc4 {[%clk 0:02:44.8]} 10... Bg7 {[%clk 0:02:19.8]} 11. O-O {[%clk
0:02:45.4]} 11... O-O {[%clk 0:02:19.6]} 12. Re1 {[%clk 0:02:46.1]} 12... Nbd7
{[%clk 0:02:01]} 13. h3 {[%clk 0:02:43.9]} 13... Ne8 {[%clk 0:01:40.2]} 14. Ne2
{[%clk 0:02:37.9]} 14... b6 {[%clk 0:01:32.7]} 15. Bc3 {[%clk 0:02:36.5]} 15...
Rb8 {[%clk 0:01:22.8]} 16. Bxg7 {[%clk 0:02:34.5]} 16... Kxg7 {[%clk 0:01:23.7]}
17. Ng3 {[%clk 0:02:34.1]} 17... Nc7 {[%clk 0:01:20.8]} 18. Qd2 {[%clk
0:02:33.4]} 18... b5 {[%clk 0:01:16]} 19. Bd3 {[%clk 0:02:20.4]} 19... c4 {[%clk
0:01:01.9]} 20. Bf1 {[%clk 0:02:20.2]} 20... Nc5 {[%clk 0:00:57.9]} 21. axb5
{[%clk 0:02:13.4]} 21... axb5 {[%clk 0:00:56.7]} 22. Bxc4 {[%clk 0:02:12.8]}
22... Ba6 {[%clk 0:00:36]} 23. Bf1 {[%clk 0:02:11.7]} 23... f6 {[%clk
0:00:23.7]} 24. Nd4 {[%clk 0:02:11.1]} 24... Qd7 {[%clk 0:00:19.5]} 25. Ra1
{[%clk 0:02:01.8]} 25... Rb6 {[%clk 0:00:18.8]} 26. Ra2 {[%clk 0:01:58.3]} 26...
b4 {[%clk 0:00:19]} 27. Bxa6 {[%clk 0:01:55.8]} 27... N7xa6 {[%clk 0:00:19.9]}
28. Re3 {[%clk 0:01:50.9]} 28... Kg8 {[%clk 0:00:17.5]} 29. Rf3 {[%clk
0:01:49.8]} 29... Rc8 {[%clk 0:00:16.5]} 30. Qh6 {[%clk 0:01:49.6]} 30... Qe8
{[%clk 0:00:14.2]} 31. Ngf5 {[%clk 0:01:45.8]} 31... Qf7 {[%clk 0:00:13]} 32.
Rg3 {[%clk 0:01:45.5]} 32... Kh8 {[%clk 0:00:12.6]} 33. Nh4 {[%clk 0:01:43.8]}
33... Rg8 {[%clk 0:00:11.7]} 34. Ne6 {[%clk 0:01:29.8]} 34... Rbb8 {[%clk
0:00:11.3]} 35. Nxc5 {[%clk 0:01:21.2]} 35... Nxc5 {[%clk 0:00:10.8]} 36. Ra7
{[%clk 0:01:21.5]} 36... Nxe4 {[%clk 0:00:10.6]} 37. Re3 {[%clk 0:01:19.7]}
37... f5 {[%clk 0:00:10.9]} 38. f3 {[%clk 0:01:17.7]} 38... Qf6 {[%clk
0:00:09.5]} 39. fxe4 {[%clk 0:01:14.4]} 39... Qd4 {[%clk 0:00:08.5]} 40. Rxe7
{[%clk 0:01:13]} 40... Rg7 {[%clk 0:00:07.9]} 41. Nxg6+ {[%clk 0:01:10.8]} 41...
Kg8 {[%clk 0:00:07.9]} 42. Rxg7+ {[%clk 0:01:05.6]} 42... Qxg7 {[%clk
0:00:08.8]} 43. Qxg7+ {[%clk 0:01:05.8]} 43... Kxg7 {[%clk 0:00:09.7]} 44. Ne7
{[%clk 0:01:05.4]} 44... fxe4 {[%clk 0:00:09.6]} 45. Rxe4 {[%clk 0:01:04.4]}
45... Kf6 {[%clk 0:00:10.4]} 46. Re6+ {[%clk 0:01:03.5]} 46... Kf7 {[%clk
0:00:10]} 47. Nf5 {[%clk 0:01:02.5]} 47... Ra8 {[%clk 0:00:09.1]} 48. Nxd6+
{[%clk 0:01:02.7]} 48... Kg7 {[%clk 0:00:09.1]} 49. Nf5+ {[%clk 0:01:02.5]}
49... Kf7 {[%clk 0:00:08.5]} 50. Nh6+ {[%clk 0:01:02.7]} 50... Kg7 {[%clk
0:00:08.7]} 51. d6 {[%clk 0:01:03.4]} 51... Ra1+ {[%clk 0:00:07.7]} 52. Kh2
{[%clk 0:01:03.2]} 52... Rd1 {[%clk 0:00:08.6]} 53. Nf5+ {[%clk 0:01:02.4]}
53... Kf7 {[%clk 0:00:08.4]} 54. Re7+ {[%clk 0:01:02]} 54... Kf6 {[%clk
0:00:08.6]} 55. g4 {[%clk 0:01:02.4]} 55... h5 {[%clk 0:00:08.2]} 56. d7 {[%clk
0:01:01.4]} 56... hxg4 {[%clk 0:00:07.6]} 57. hxg4 {[%clk 0:01:02.3]} 57... Rd5
{[%clk 0:00:07.3]} 58. Rh7 {[%clk 0:00:58.2]} 58... Kg6 {[%clk 0:00:06]} 59.
Rh6+ {[%clk 0:00:56]} 59... Kg5 {[%clk 0:00:06]} 60. Rd6 {[%clk 0:00:56.9]}
60... Rxd6 {[%clk 0:00:04.2]} 61. Nxd6 {[%clk 0:00:57.8]} 61... b3 {[%clk
0:00:04.3]} 62. d8=Q+ {[%clk 0:00:58.7]} 1-0

[Event "Early-Titled-Tuesday-Blitz-March-26-2024"]
[Site "Chess.com"]
[Date "2024.03.26"]
[Round "4"]
[White "ChelsieMonica"]
[Black "Harry_Rakkel"]
[Result "0-1"]
[WhiteElo "2544"]
[BlackElo "2731"]
[TimeControl "180+1"]
[EndTime "8:38:24 PDT"]
[Termination "Harry_Rakkel won by resignation"]

1. e4 {[%clk 0:01:39.3]} 1... c6 {[%clk 0:02:57.2]} 2. d4 {[%clk 0:01:39]} 2...
d5 {[%clk 0:02:56.8]} 3. Nc3 {[%clk 0:01:39.9]} 3... a6 {[%clk 0:02:53.9]} 4.
exd5 {[%clk 0:01:39.9]} 4... cxd5 {[%clk 0:02:53.5]} 5. Nf3 {[%clk 0:01:40.8]}
5... Nc6 {[%clk 0:02:52.8]} 6. h3 {[%clk 0:01:41.3]} 6... Bf5 {[%clk 0:02:52]}
7. Bd3 {[%clk 0:01:41.8]} 7... Bg6 {[%clk 0:02:50.7]} 8. a3 {[%clk 0:01:42]}
8... Nf6 {[%clk 0:02:50]} 9. O-O {[%clk 0:01:41.9]} 9... e6 {[%clk 0:02:49.9]}
10. Re1 {[%clk 0:01:42.4]} 10... Qc7 {[%clk 0:02:47.1]} 11. Bxg6 {[%clk
0:01:42.4]} 11... hxg6 {[%clk 0:02:46.5]} 12. Ne5 {[%clk 0:01:43.1]} 12... Nxe5
{[%clk 0:02:42.4]} 13. Rxe5 {[%clk 0:01:43.2]} 13... Bd6 {[%clk 0:02:40.7]} 14.
Re2 {[%clk 0:01:42.4]} 14... b5 {[%clk 0:02:35.5]} 15. Bg5 {[%clk 0:01:42.3]}
15... O-O {[%clk 0:02:32.4]} 16. Qd3 {[%clk 0:01:36.3]} 16... Bh2+ {[%clk
0:02:28.3]} 17. Kh1 {[%clk 0:01:35.4]} 17... Bf4 {[%clk 0:02:29.2]} 18. Bxf6
{[%clk 0:01:24.2]} 18... gxf6 {[%clk 0:02:29]} 19. g3 {[%clk 0:01:25.1]} 19...
Bh6 {[%clk 0:02:26]} 20. Kg2 {[%clk 0:01:25.3]} 20... Rab8 {[%clk 0:02:22.2]}
21. Nd1 {[%clk 0:01:22.4]} 21... a5 {[%clk 0:02:16.8]} 22. b3 {[%clk 0:01:20.2]}
22... f5 {[%clk 0:02:12.8]} 23. a4 {[%clk 0:01:17.2]} 23... b4 {[%clk
0:02:11.1]} 24. g4 {[%clk 0:01:13]} 24... fxg4 {[%clk 0:02:06.3]} 25. hxg4
{[%clk 0:01:13.9]} 25... Bg7 {[%clk 0:02:04.2]} 26. Ne3 {[%clk 0:01:06.2]} 26...
Qf4 {[%clk 0:02:03.1]} 27. Rd1 {[%clk 0:01:04.8]} 27... Rfc8 {[%clk 0:02:02.9]}
28. Red2 {[%clk 0:01:01.6]} 28... Rc3 {[%clk 0:01:59.4]} 29. Qe2 {[%clk
0:01:01.9]} 29... Rbc8 {[%clk 0:01:58.7]} 30. Rd3 {[%clk 0:00:59.7]} 30... Rxd3
{[%clk 0:01:53.3]} 31. Rxd3 {[%clk 0:00:59.5]} 31... Bxd4 {[%clk 0:01:51.9]} 32.
Nf1 {[%clk 0:00:54.1]} 32... Bg7 {[%clk 0:01:43.6]} 33. Ne3 {[%clk 0:00:47.6]}
33... Be5 {[%clk 0:01:37.1]} 34. Nf1 {[%clk 0:00:44.6]} 34... Bb8 {[%clk
0:01:35.8]} 35. Rh3 {[%clk 0:00:40.4]} 35... Qe5 {[%clk 0:01:25.3]} 36. Qd3
{[%clk 0:00:33.4]} 36... Qe4+ {[%clk 0:01:24.3]} 37. Qxe4 {[%clk 0:00:21.7]}
37... dxe4 {[%clk 0:01:25.2]} 38. Ne3 {[%clk 0:00:22]} 38... Rc3 {[%clk
0:01:21.6]} 39. Nc4 {[%clk 0:00:19.9]} 39... Rxc2 {[%clk 0:01:21.3]} 40. Nxa5
{[%clk 0:00:19.7]} 40... Ba7 {[%clk 0:01:21.5]} 41. Nc4 {[%clk 0:00:16.6]} 41...
Rxf2+ {[%clk 0:01:19.7]} 42. Kh1 {[%clk 0:00:17.2]} 42... Rf1+ {[%clk
0:01:07.7]} 43. Kg2 {[%clk 0:00:17.2]} 43... Rg1+ {[%clk 0:01:08]} 44. Kh2
{[%clk 0:00:17.3]} 44... Rxg4 {[%clk 0:01:07.4]} 45. a5 {[%clk 0:00:16.8]} 45...
Rg5 {[%clk 0:00:57.1]} 46. Rh4 {[%clk 0:00:15.6]} 46... e3 {[%clk 0:00:50.3]}
47. Re4 {[%clk 0:00:14.5]} 47... Rd5 {[%clk 0:00:48.3]} 48. a6 {[%clk
0:00:12.4]} 48... Rd3 {[%clk 0:00:47]} 49. Ne5 {[%clk 0:00:09]} 49... Rd6 {[%clk
0:00:44.5]} 50. Rxb4 {[%clk 0:00:06.5]} 50... Rxa6 {[%clk 0:00:40.5]} 51. Rb7
{[%clk 0:00:06.4]} 51... e2 {[%clk 0:00:39.6]} 52. Nf3 {[%clk 0:00:06]} 52...
Bf2 {[%clk 0:00:38.7]} 53. Kg2 {[%clk 0:00:06.1]} 53... e1=Q {[%clk 0:00:38.6]}
54. Nxe1 {[%clk 0:00:06.8]} 54... Bxe1 {[%clk 0:00:39.4]} 0-1

[Event "Early-Titled-Tuesday-Blitz-March-26-2024"]
[Site "Chess.com"]
[Date "2024.03.26"]
[Round "4"]
[White "Shuvalov"]
[Black "NastyaHn"]
[Result "1-0"]
[WhiteElo "2606"]
[BlackElo "2452"]
[TimeControl "180+1"]
[EndTime "8:38:26 PDT"]
[Termination "Shuvalov won on time"]

1. d4 {[%clk 0:03:00.9]} 1... d5 {[%clk 0:02:59.4]} 2. c4 {[%clk 0:03:00]} 2...
e6 {[%clk 0:02:59.4]} 3. Nf3 {[%clk 0:02:59.6]} 3... Nf6 {[%clk 0:02:59.4]} 4.
Nc3 {[%clk 0:02:59.2]} 4... Be7 {[%clk 0:02:57.2]} 5. Bf4 {[%clk 0:02:58.4]}
5... O-O {[%clk 0:02:57.2]} 6. e3 {[%clk 0:02:58.8]} 6... c5 {[%clk 0:02:55.9]}
7. dxc5 {[%clk 0:02:58.5]} 7... Bxc5 {[%clk 0:02:55.6]} 8. a3 {[%clk 0:02:58.9]}
8... dxc4 {[%clk 0:02:49.9]} 9. Bxc4 {[%clk 0:02:56.1]} 9... Nc6 {[%clk
0:02:49.6]} 10. O-O {[%clk 0:02:53.1]} 10... h6 {[%clk 0:02:45.7]} 11. Qe2
{[%clk 0:02:50.8]} 11... Nh5 {[%clk 0:02:41.5]} 12. Rad1 {[%clk 0:02:30]} 12...
Nxf4 {[%clk 0:02:26.9]} 13. exf4 {[%clk 0:02:30.9]} 13... Qc7 {[%clk 0:02:24.5]}
14. Ne5 {[%clk 0:02:26.2]} 14... a6 {[%clk 0:02:11.2]} 15. Bd3 {[%clk
0:02:23.3]} 15... Nd4 {[%clk 0:01:30.5]} 16. Qe4 {[%clk 0:02:17.5]} 16... f5
{[%clk 0:01:30]} 17. Qe1 {[%clk 0:02:08.3]} 17... b5 {[%clk 0:01:25.1]} 18. Rc1
{[%clk 0:02:02.8]} 18... Qd6 {[%clk 0:01:13]} 19. b4 {[%clk 0:01:50.2]} 19...
Bb6 {[%clk 0:01:10.5]} 20. Ng6 {[%clk 0:01:43.8]} 20... Rf6 {[%clk 0:01:02]} 21.
Qe5 {[%clk 0:01:25.4]} 21... Qd8 {[%clk 0:00:39.7]} 22. Nh4 {[%clk 0:01:24.2]}
22... Bb7 {[%clk 0:00:39.5]} 23. Rfd1 {[%clk 0:01:22.8]} 23... Rf7 {[%clk
0:00:27.4]} 24. Ng6 {[%clk 0:01:15.3]} 24... Rd7 {[%clk 0:00:26.3]} 25. Bf1
{[%clk 0:01:04.9]} 25... Qe8 {[%clk 0:00:21.8]} 26. Nh4 {[%clk 0:01:03.1]} 26...
Rad8 {[%clk 0:00:21.9]} 27. Rd3 {[%clk 0:01:01.7]} 27... Qh5 {[%clk 0:00:20.8]}
28. Rh3 {[%clk 0:00:59]} 28... Qg4 {[%clk 0:00:15.8]} 29. Nd1 {[%clk 0:00:38.3]}
29... Bxg2 {[%clk 0:00:07.7]} 30. Ne3 {[%clk 0:00:31.7]} 30... Bxh3+ {[%clk
0:00:06.5]} 31. Nxg4 {[%clk 0:00:30.9]} 31... Bxg4 {[%clk 0:00:07.1]} 32. h3
{[%clk 0:00:23.1]} 32... Bh5 {[%clk 0:00:05.8]} 33. Bg2 {[%clk 0:00:19.9]} 33...
Bf7 {[%clk 0:00:04.9]} 34. Nf3 {[%clk 0:00:18.7]} 34... Nxf3+ {[%clk 0:00:02.1]}
35. Bxf3 {[%clk 0:00:19.6]} 35... Bd4 {[%clk 0:00:02.5]} 36. Qe2 {[%clk
0:00:16.5]} 36... Bf6 {[%clk 0:00:02.8]} 37. Kg2 {[%clk 0:00:15.7]} 37... Rd2
{[%clk 0:00:02.9]} 38. Qe3 {[%clk 0:00:15.2]} 38... Rb2 {[%clk 0:00:02.8]} 39.
Rd1 {[%clk 0:00:14.4]} 39... Rxd1 {[%clk 0:00:02]} 40. Bxd1 {[%clk 0:00:15.3]}
40... Ra2 {[%clk 0:00:01.7]} 41. Bf3 {[%clk 0:00:15]} 41... e5 {[%clk
0:00:01.4]} 42. fxe5 {[%clk 0:00:14.6]} 42... Bg5 {[%clk 0:00:02]} 43. Qd3
{[%clk 0:00:13.2]} 43... Bc4 {[%clk 0:00:01.3]} 44. Bd5+ {[%clk 0:00:12.5]} 1-0

[Event "Early-Titled-Tuesday-Blitz-March-26-2024"]
[Site "Chess.com"]
[Date "2024.03.26"]
[Round "4"]
[White "SpeedofLight0"]
[Black "superchess02"]
[Result "0-1"]
[WhiteElo "3069"]
[BlackElo "2868"]
[TimeControl "180+1"]
[EndTime "8:38:31 PDT"]
[Termination "superchess02 won by checkmate"]

1. d4 {[%clk 0:03:00]} 1... Nf6 {[%clk 0:03:00.1]} 2. Nc3 {[%clk 0:03:00.6]}
2... d5 {[%clk 0:02:58.5]} 3. Bf4 {[%clk 0:03:00.8]} 3... Bf5 {[%clk 0:02:53.9]}
4. e3 {[%clk 0:03:00.5]} 4... e6 {[%clk 0:02:53.9]} 5. Bd3 {[%clk 0:03:00.4]}
5... Bg6 {[%clk 0:02:53.5]} 6. Nf3 {[%clk 0:03:00.3]} 6... Bd6 {[%clk
0:02:52.4]} 7. Ne5 {[%clk 0:03:00.6]} 7... Bxd3 {[%clk 0:02:50.5]} 8. cxd3
{[%clk 0:02:59.6]} 8... Nbd7 {[%clk 0:02:50.2]} 9. Qb3 {[%clk 0:02:59]} 9... Nb6
{[%clk 0:02:08.9]} 10. Rc1 {[%clk 0:02:47.3]} 10... O-O {[%clk 0:02:07.5]} 11.
Bg5 {[%clk 0:02:46.1]} 11... h6 {[%clk 0:02:04.7]} 12. Bh4 {[%clk 0:02:45.7]}
12... Be7 {[%clk 0:02:04]} 13. O-O {[%clk 0:02:43.8]} 13... Nfd7 {[%clk
0:02:01.7]} 14. Bg3 {[%clk 0:02:38.2]} 14... Nxe5 {[%clk 0:02:01.3]} 15. Bxe5
{[%clk 0:02:38.9]} 15... c6 {[%clk 0:01:43.4]} 16. a4 {[%clk 0:02:35.2]} 16...
a5 {[%clk 0:01:21.7]} 17. Bg3 {[%clk 0:02:33.8]} 17... Ra7 {[%clk 0:01:17.9]}
18. Rfe1 {[%clk 0:02:07.7]} 18... Nd7 {[%clk 0:01:13.7]} 19. Re2 {[%clk
0:02:05.8]} 19... Qb6 {[%clk 0:01:14]} 20. Qd1 {[%clk 0:02:04.9]} 20... Raa8
{[%clk 0:01:05.5]} 21. f4 {[%clk 0:02:00.9]} 21... c5 {[%clk 0:00:54.1]} 22. Nb5
{[%clk 0:01:56.2]} 22... cxd4 {[%clk 0:00:53.3]} 23. exd4 {[%clk 0:01:56.9]}
23... Rfc8 {[%clk 0:00:45.3]} 24. f5 {[%clk 0:01:50.5]} 24... Bg5 {[%clk
0:00:44.8]} 25. Rc7 {[%clk 0:01:40.2]} 25... exf5 {[%clk 0:00:19.7]} 26. h4
{[%clk 0:01:32]} 26... f4 {[%clk 0:00:19.4]} 27. Rxd7 {[%clk 0:01:28.8]} 27...
f3 {[%clk 0:00:14.2]} 28. hxg5 {[%clk 0:01:09.2]} 28... fxe2 {[%clk 0:00:14.3]}
29. Qxe2 {[%clk 0:01:10]} 29... Rc1+ {[%clk 0:00:14.7]} 30. Kh2 {[%clk
0:01:08.2]} 30... hxg5 {[%clk 0:00:15.3]} 31. Qh5 {[%clk 0:01:08.1]} 31... Qf6
{[%clk 0:00:14.3]} 32. Nd6 {[%clk 0:01:06.1]} 32... Rf8 {[%clk 0:00:11.3]} 33.
Be5 {[%clk 0:00:42.5]} 33... Qf1 {[%clk 0:00:11]} 34. Qxg5 {[%clk 0:00:31]}
34... Qh1+ {[%clk 0:00:11.1]} 35. Kg3 {[%clk 0:00:31.2]} 35... Qe1+ {[%clk
0:00:12]} 36. Kh3 {[%clk 0:00:31.2]} 36... Qh1+ {[%clk 0:00:12.2]} 37. Bh2
{[%clk 0:00:30.9]} 37... Rd1 {[%clk 0:00:10.5]} 38. Qg3 {[%clk 0:00:21.4]} 38...
Qf1 {[%clk 0:00:09.3]} 39. Qg4 {[%clk 0:00:06.3]} 39... Rxd3+ {[%clk 0:00:08.2]}
40. Kh4 {[%clk 0:00:05.4]} 40... Qh1 {[%clk 0:00:08.5]} 41. Qf4 {[%clk 0:00:04]}
41... Qxg2 {[%clk 0:00:08.9]} 42. Bg3 {[%clk 0:00:04.6]} 42... Qh1+ {[%clk
0:00:08.7]} 43. Kg4 {[%clk 0:00:04.3]} 43... g6 {[%clk 0:00:09.2]} 44. Rxf7
{[%clk 0:00:03.6]} 44... Qh5# {[%clk 0:00:09.1]} 0-1

[Event "Early-Titled-Tuesday-Blitz-March-26-2024"]
[Site "Chess.com"]
[Date "2024.03.26"]
[Round "4"]
[White "Zurability"]
[Black "Nf3c5"]
[Result "0-1"]
[WhiteElo "2708"]
[BlackElo "2550"]
[TimeControl "180+1"]
[EndTime "8:38:31 PDT"]
[Termination "Nf3c5 won by checkmate"]

1. e4 {[%clk 0:03:00.9]} 1... c5 {[%clk 0:02:58.7]} 2. Nf3 {[%clk 0:03:00.6]}
2... Nc6 {[%clk 0:02:59.1]} 3. c3 {[%clk 0:03:00.8]} 3... Nf6 {[%clk 0:02:58]}
4. e5 {[%clk 0:03:01.2]} 4... Nd5 {[%clk 0:02:58.5]} 5. d4 {[%clk 0:02:59.4]}
5... cxd4 {[%clk 0:02:59.4]} 6. cxd4 {[%clk 0:03:00.1]} 6... d6 {[%clk
0:02:59.7]} 7. Be2 {[%clk 0:02:48]} 7... dxe5 {[%clk 0:02:41.2]} 8. dxe5 {[%clk
0:02:47.4]} 8... Bf5 {[%clk 0:02:32.4]} 9. O-O {[%clk 0:02:44.9]} 9... e6 {[%clk
0:02:32]} 10. a3 {[%clk 0:02:40.7]} 10... Be7 {[%clk 0:02:30.1]} 11. b4 {[%clk
0:02:40.3]} 11... O-O {[%clk 0:02:30.3]} 12. Bb2 {[%clk 0:02:40.2]} 12... Nf4
{[%clk 0:02:27.1]} 13. Bb5 {[%clk 0:02:35.4]} 13... Qb6 {[%clk 0:02:22.7]} 14.
Nc3 {[%clk 0:02:26.9]} 14... Rad8 {[%clk 0:02:13.7]} 15. Qc1 {[%clk 0:02:23]}
15... Nd3 {[%clk 0:02:00.8]} 16. Bxd3 {[%clk 0:02:22.9]} 16... Bxd3 {[%clk
0:02:00.5]} 17. Re1 {[%clk 0:02:20.6]} 17... a5 {[%clk 0:01:48.6]} 18. Na4
{[%clk 0:01:47.4]} 18... Qb5 {[%clk 0:01:42.6]} 19. Nc3 {[%clk 0:01:47.5]} 19...
Qc4 {[%clk 0:01:37.6]} 20. b5 {[%clk 0:01:47.3]} 20... Na7 {[%clk 0:01:30.5]}
21. a4 {[%clk 0:01:33.9]} 21... Nc8 {[%clk 0:01:29.3]} 22. Nd2 {[%clk
0:01:27.4]} 22... Qg4 {[%clk 0:01:28.8]} 23. Nb3 {[%clk 0:01:21.8]} 23... Bb4
{[%clk 0:01:21.8]} 24. Re3 {[%clk 0:01:13.6]} 24... Nb6 {[%clk 0:01:17.9]} 25.
Rg3 {[%clk 0:01:03.3]} 25... Qh5 {[%clk 0:01:16.6]} 26. Ba3 {[%clk 0:00:42.5]}
26... Bxa3 {[%clk 0:01:02.2]} 27. Qxa3 {[%clk 0:00:34.8]} 27... Qxe5 {[%clk
0:01:01.7]} 28. Nxa5 {[%clk 0:00:32.2]} 28... Rc8 {[%clk 0:00:56.5]} 29. Rxd3
{[%clk 0:00:27.2]} 29... Nd5 {[%clk 0:00:55.5]} 30. Rc1 {[%clk 0:00:22.2]} 30...
Nf4 {[%clk 0:00:53.1]} 31. Re3 {[%clk 0:00:20.8]} 31... Qg5 {[%clk 0:00:52.9]}
32. g3 {[%clk 0:00:20.4]} 32... Nh3+ {[%clk 0:00:41.9]} 33. Kg2 {[%clk
0:00:20.6]} 33... Qf5 {[%clk 0:00:42.3]} 34. Ne4 {[%clk 0:00:16.2]} 34... Rcd8
{[%clk 0:00:31.9]} 35. Nc4 {[%clk 0:00:08.4]} 35... Rd4 {[%clk 0:00:24.5]} 36.
Qc5 {[%clk 0:00:05.6]} 36... Rd5 {[%clk 0:00:16.3]} 37. Qb6 {[%clk 0:00:04.1]}
37... Qg4 {[%clk 0:00:12.9]} 38. f3 {[%clk 0:00:03.8]} 38... Nf4+ {[%clk
0:00:11.6]} 39. Kh1 {[%clk 0:00:04.3]} 39... Qh3 {[%clk 0:00:08.1]} 40. gxf4
{[%clk 0:00:04.8]} 40... Rfd8 {[%clk 0:00:08.7]} 41. Rg1 {[%clk 0:00:04.4]}
41... Rd1 {[%clk 0:00:06.7]} 42. Ncd2 {[%clk 0:00:04.8]} 42... Rxg1+ {[%clk
0:00:03.2]} 43. Kxg1 {[%clk 0:00:04.9]} 43... Rc8 {[%clk 0:00:02.7]} 44. Qd4
{[%clk 0:00:04.6]} 44... Rc1+ {[%clk 0:00:02.3]} 45. Kf2 {[%clk 0:00:05]} 45...
Qxh2# {[%clk 0:00:01.9]} 0-1

[Event "Early-Titled-Tuesday-Blitz-March-26-2024"]
[Site "Chess.com"]
[Date "2024.03.26"]
[Round "4"]
[White "kingofthenil"]
[Black "biveklama"]
[Result "0-1"]
[WhiteElo "2771"]
[BlackElo "2576"]
[TimeControl "180+1"]
[EndTime "8:38:34 PDT"]
[Termination "biveklama won by resignation"]

1. e4 {[%clk 0:02:58.9]} 1... e5 {[%clk 0:02:56.8]} 2. Nf3 {[%clk 0:02:32.6]}
2... Nc6 {[%clk 0:02:55.8]} 3. d4 {[%clk 0:02:33.5]} 3... exd4 {[%clk 0:02:53]}
4. Nxd4 {[%clk 0:02:34.4]} 4... Bc5 {[%clk 0:02:29.8]} 5. Nf3 {[%clk 0:02:32.4]}
5... d6 {[%clk 0:02:27.6]} 6. Bc4 {[%clk 0:02:29.3]} 6... Be6 {[%clk 0:02:17.1]}
7. Bd5 {[%clk 0:02:25.2]} 7... Nf6 {[%clk 0:02:11.3]} 8. O-O {[%clk 0:02:22.1]}
8... O-O {[%clk 0:02:08.2]} 9. Bg5 {[%clk 0:02:17.2]} 9... h6 {[%clk 0:02:05.1]}
10. Bh4 {[%clk 0:02:16.7]} 10... Bxd5 {[%clk 0:02:00.6]} 11. exd5 {[%clk
0:02:13.5]} 11... Ne5 {[%clk 0:02:01.2]} 12. Nbd2 {[%clk 0:02:03.7]} 12... Ng6
{[%clk 0:01:56.2]} 13. Bxf6 {[%clk 0:01:53.1]} 13... Qxf6 {[%clk 0:01:57.1]} 14.
c3 {[%clk 0:01:41.9]} 14... Rae8 {[%clk 0:01:51.7]} 15. g3 {[%clk 0:01:38.1]}
15... h5 {[%clk 0:01:42.7]} 16. h4 {[%clk 0:01:26.5]} 16... Qf5 {[%clk 0:01:21]}
17. Nb3 {[%clk 0:01:16.9]} 17... Qg4 {[%clk 0:01:01.4]} 18. Nxc5 {[%clk
0:01:13.3]} 18... dxc5 {[%clk 0:00:52.4]} 19. Ng5 {[%clk 0:01:13.4]} 19... Re2
{[%clk 0:00:40.6]} 20. Qd3 {[%clk 0:01:04]} 20... Rfe8 {[%clk 0:00:27.6]} 21. b4
{[%clk 0:00:56.5]} 21... c4 {[%clk 0:00:20.6]} 22. Qf3 {[%clk 0:00:55.7]} 22...
Ne5 {[%clk 0:00:16.1]} 23. Qxg4 {[%clk 0:00:54]} 23... Nxg4 {[%clk 0:00:16.2]}
24. Nh3 {[%clk 0:00:45.1]} 24... Rc2 {[%clk 0:00:14]} 25. Nf4 {[%clk 0:00:45.8]}
25... Rxc3 {[%clk 0:00:13.6]} 26. Rac1 {[%clk 0:00:43.3]} 26... Rxc1 {[%clk
0:00:13.3]} 27. Rxc1 {[%clk 0:00:44.2]} 27... b5 {[%clk 0:00:13.4]} 28. a4
{[%clk 0:00:44.7]} 28... a6 {[%clk 0:00:12.6]} 29. f3 {[%clk 0:00:25.1]} 29...
Nf6 {[%clk 0:00:11.1]} 30. Kf2 {[%clk 0:00:25.5]} 30... Rd8 {[%clk 0:00:10.8]}
31. Rd1 {[%clk 0:00:23.9]} 31... Rd6 {[%clk 0:00:10.9]} 32. axb5 {[%clk
0:00:17.9]} 32... axb5 {[%clk 0:00:11.5]} 33. Ke3 {[%clk 0:00:04.6]} 33... c6
{[%clk 0:00:11.4]} 34. dxc6 {[%clk 0:00:05]} 34... Rxd1 {[%clk 0:00:08.6]} 35.
c7 {[%clk 0:00:05.6]} 35... Re1+ {[%clk 0:00:09.5]} 36. Kd4 {[%clk 0:00:04.5]}
36... Re8 {[%clk 0:00:09.5]} 37. Kc5 {[%clk 0:00:04.9]} 37... Rc8 {[%clk
0:00:09.8]} 38. Kc6 {[%clk 0:00:05.5]} 38... Ne8 {[%clk 0:00:10.4]} 39. Kd7
{[%clk 0:00:06]} 39... Rxc7+ {[%clk 0:00:11.3]} 40. Kd8 {[%clk 0:00:06.9]} 40...
Ra7 {[%clk 0:00:10.8]} 41. Kxe8 {[%clk 0:00:07.1]} 41... Ra4 {[%clk 0:00:10.8]}
42. Nd5 {[%clk 0:00:07.1]} 42... c3 {[%clk 0:00:11.2]} 43. Nxc3 {[%clk
0:00:06.9]} 43... Rxb4 {[%clk 0:00:11.7]} 44. Ke7 {[%clk 0:00:07.4]} 44... Rb3
{[%clk 0:00:11.1]} 45. Ne4 {[%clk 0:00:07.8]} 45... Rxf3 {[%clk 0:00:11.6]} 46.
Kd6 {[%clk 0:00:07.7]} 46... b4 {[%clk 0:00:11.5]} 47. Nd2 {[%clk 0:00:06.8]}
47... Rd3+ {[%clk 0:00:11.2]} 0-1